[Event "Titled Tuesday Blitz August 22 Late 2023"]
[White "Vafin, Ayrat"]
[Black "Andreikin, Dmitry"]
[WhiteFideId "4146530"]
[BlackFideId "4158814"]
[WhiteElo "2505"]
[BlackElo "2993"]
[Result "0-1"]
[Round "1"]
[TimeControl "180+1"]
[Date "2023.08.22"]
[WhiteClock "0:00:00"]
[BlackClock "0:02:07"]
[Board "21"]

1. Nf3 {[%clk 0:03:00]}  g6 {[%clk 0:03:00]} 2. d4 {[%clk 0:03:00]}  Nf6 {[%clk 0:03:00]} 3. c4 {[%clk 0:03:01]}  Bg7 {[%clk 0:03:00]} 4. Nc3 {[%clk 0:03:01]}  O-O {[%clk 0:03:00]} 5. e4 {[%clk 0:02:59]}  d6 {[%clk 0:03:01]} 6. g3 {[%clk 0:02:58]}  Bg4 {[%clk 0:02:58]} 7. Bg2 {[%clk 0:02:58]}  Nc6 {[%clk 0:02:56]} 8. Be3 {[%clk 0:02:56]}  e5 {[%clk 0:02:55]} 9. d5 {[%clk 0:02:40]}  Nd4 {[%clk 0:02:55]} 10. h3 {[%clk 0:02:34]}  Bxf3 {[%clk 0:02:55]} 11. Bxf3 {[%clk 0:02:35]}  Nd7 {[%clk 0:02:54]} 12. Bg2 {[%clk 0:02:19]}  f5 {[%clk 0:02:54]} 13. exf5 {[%clk 0:02:20]}  gxf5 {[%clk 0:02:53]} 14. f4 {[%clk 0:02:20]}  b5 {[%clk 0:02:47]} 15. cxb5 {[%clk 0:02:08]}  Qb8 {[%clk 0:02:47]} 16. O-O {[%clk 0:01:52]}  Nxb5 {[%clk 0:02:46]} 17. Qd2 {[%clk 0:01:30]}  e4 {[%clk 0:02:37]} 18. Nxb5 {[%clk 0:01:15]}  Qxb5 {[%clk 0:02:38]} 19. Rac1 {[%clk 0:01:16]}  Rfc8 {[%clk 0:02:29]} 20. b3 {[%clk 0:01:15]}  a5 {[%clk 0:02:27]} 21. Rfd1 {[%clk 0:01:15]}  a4 {[%clk 0:02:26]} 22. Bf1 {[%clk 0:01:15]}  Qb7 {[%clk 0:02:25]} 23. b4 {[%clk 0:00:04]}  a3 {[%clk 0:02:24]} 24. Rc6 {[%clk 0:00:04]}  Bb2 {[%clk 0:02:19]} 25. b5 {[%clk 0:00:03]}  Ra4 {[%clk 0:02:18]} 26. Qc2 {[%clk 0:00:03]}  Rb4 {[%clk 0:02:17]} 27. Qd2 {[%clk 0:00:04]}  Rxb5 {[%clk 0:02:15]} 28. Bxb5 {[%clk 0:00:03]}  Qxb5 {[%clk 0:02:16]} 29. Bd4 {[%clk 0:00:03]}  Qxd5 {[%clk 0:02:13]} 30. Ra6 {[%clk 0:00:02]}  Qxa2 {[%clk 0:02:09]} 31. Bc3 {[%clk 0:00:02]}  Qc4 {[%clk 0:02:08]} 32. Bxb2 {[%clk 0:00:00]}  axb2 {[%clk 0:02:07]} 0-1


[Site "https://www.chess.com"]

[Event "Titled Tuesday Blitz August 22 Late 2023"]
[White "Xiong, Jeffery"]
[Black "Swicarz, Maciej"]
[WhiteFideId "2047640"]
[BlackFideId "1113585"]
[WhiteElo "2993"]
[BlackElo "2504"]
[Result "1-0"]
[Round "1"]
[TimeControl "180+1"]
[Date "2023.08.22"]
[WhiteClock "0:00:41"]
[BlackClock "0:00:00"]
[Board "22"]

1. e4 {[%clk 0:03:00]}  c5 {[%clk 0:02:59]} 2. Nf3 {[%clk 0:03:00]}  d6 {[%clk 0:02:59]} 3. Nc3 {[%clk 0:03:01]}  e5 {[%clk 0:02:50]} 4. Bc4 {[%clk 0:02:54]}  a6 {[%clk 0:02:43]} 5. a4 {[%clk 0:02:54]}  g6 {[%clk 0:02:29]} 6. d3 {[%clk 0:02:53]}  Bg7 {[%clk 0:02:28]} 7. Ng5 {[%clk 0:02:23]}  Nh6 {[%clk 0:02:26]} 8. O-O {[%clk 0:02:23]}  O-O {[%clk 0:02:23]} 9. f4 {[%clk 0:02:24]}  Nc6 {[%clk 0:02:17]} 10. f5 {[%clk 0:02:22]}  gxf5 {[%clk 0:02:08]} 11. exf5 {[%clk 0:02:22]}  Bxf5 {[%clk 0:01:52]} 12. Rxf5 {[%clk 0:02:20]}  Nxf5 {[%clk 0:01:52]} 13. Qh5 {[%clk 0:02:20]}  Nh6 {[%clk 0:01:47]} 14. Be3 {[%clk 0:02:03]}  b5 {[%clk 0:01:30]} 15. Bd5 {[%clk 0:01:54]}  Nb4 {[%clk 0:01:22]} 16. Bxa8 {[%clk 0:01:51]}  Qxa8 {[%clk 0:01:21]} 17. axb5 {[%clk 0:01:41]}  Nxc2 {[%clk 0:00:56]} 18. Rxa6 {[%clk 0:01:40]}  Qb8 {[%clk 0:00:56]} 19. Bd2 {[%clk 0:01:22]}  Nb4 {[%clk 0:00:50]} 20. Nge4 {[%clk 0:01:20]}  Nxa6 {[%clk 0:00:38]} 21. Bxh6 {[%clk 0:01:17]}  f5 {[%clk 0:00:38]} 22. Bxg7 {[%clk 0:01:13]}  Kxg7 {[%clk 0:00:36]} 23. Ng5 {[%clk 0:01:13]}  Nb4 {[%clk 0:00:04]} 24. Qxh7+ {[%clk 0:00:45]}  Kf6 {[%clk 0:00:04]} 25. Qh6+ {[%clk 0:00:46]}  Ke7 {[%clk 0:00:05]} 26. Qe6+ {[%clk 0:00:46]}  Kd8 {[%clk 0:00:05]} 27. Nf7+ {[%clk 0:00:47]}  Rxf7 {[%clk 0:00:03]} 28. Qxf7 {[%clk 0:00:48]}  Qc7 {[%clk 0:00:02]} 29. Qxf5 {[%clk 0:00:48]}  Ke7 {[%clk 0:00:02]} 30. h4 {[%clk 0:00:43]}  Qd7 {[%clk 0:00:01]} 31. Qxd7+ {[%clk 0:00:40]}  Kxd7 {[%clk 0:00:02]} 32. h5 {[%clk 0:00:40]}  Nxd3 {[%clk 0:00:02]} 33. h6 {[%clk 0:00:40]}  Nf4 {[%clk 0:00:02]} 34. h7 {[%clk 0:00:40]}  Ng6 {[%clk 0:00:03]} 35. Nd5 {[%clk 0:00:41]}  Ke6 {[%clk 0:00:00]} 36. b6 {[%clk 0:00:41]} 1-0


[Site "https://www.chess.com"]

[Event "Titled Tuesday Blitz August 22 Late 2023"]
[White "Svane, Rasmus"]
[Black "Grinev, Valeriy"]
[WhiteFideId "4657101"]
[BlackFideId "14117517"]
[WhiteElo "2991"]
[BlackElo "2503"]
[Result "1/2-1/2"]
[Round "1"]
[TimeControl "180+1"]
[Date "2023.08.22"]
[WhiteClock "0:00:15"]
[BlackClock "0:00:21"]
[Board "24"]

1. Nf3 {[%clk 0:03:00]}  c5 {[%clk 0:02:59]} 2. c4 {[%clk 0:02:59]}  Nc6 {[%clk 0:02:59]} 3. Nc3 {[%clk 0:02:59]}  e5 {[%clk 0:02:58]} 4. e3 {[%clk 0:02:58]}  Nf6 {[%clk 0:02:58]} 5. Be2 {[%clk 0:02:59]}  d5 {[%clk 0:02:56]} 6. cxd5 {[%clk 0:02:59]}  Nxd5 {[%clk 0:02:57]} 7. O-O {[%clk 0:02:59]}  Nxc3 {[%clk 0:02:53]} 8. dxc3 {[%clk 0:03:00]}  Qxd1 {[%clk 0:02:53]} 9. Rxd1 {[%clk 0:03:00]}  e4 {[%clk 0:02:53]} 10. Ng5 {[%clk 0:02:36]}  f5 {[%clk 0:02:51]} 11. Bc4 {[%clk 0:02:35]}  Ne5 {[%clk 0:02:44]} 12. Bd5 {[%clk 0:02:22]}  Be7 {[%clk 0:02:30]} 13. Ne6 {[%clk 0:02:20]}  Bxe6 {[%clk 0:02:25]} 14. Bxe6 {[%clk 0:02:21]}  Rf8 {[%clk 0:02:18]} 15. Kf1 {[%clk 0:02:15]}  Rf6 {[%clk 0:02:18]} 16. Bd5 {[%clk 0:01:50]}  O-O-O {[%clk 0:02:17]} 17. Ke2 {[%clk 0:01:49]}  Rfd6 {[%clk 0:02:09]} 18. Bb3 {[%clk 0:01:49]}  c4 {[%clk 0:02:02]} 19. Rxd6 {[%clk 0:01:47]}  Rxd6 {[%clk 0:02:01]} 20. Bc2 {[%clk 0:01:47]}  Nd3 {[%clk 0:02:00]} 21. b3 {[%clk 0:01:44]}  Bf6 {[%clk 0:01:53]} 22. Bd2 {[%clk 0:01:37]}  Nxf2 {[%clk 0:01:34]} 23. Rf1 {[%clk 0:01:27]}  cxb3 {[%clk 0:01:14]} 24. Bxb3 {[%clk 0:01:21]}  Nd3 {[%clk 0:01:13]} 25. Rxf5 {[%clk 0:01:20]}  Kc7 {[%clk 0:01:07]} 26. g4 {[%clk 0:01:04]}  h6 {[%clk 0:01:07]} 27. Rd5 {[%clk 0:01:01]}  Ne5 {[%clk 0:01:04]} 28. h3 {[%clk 0:00:57]}  Nf3 {[%clk 0:01:02]} 29. Rxd6 {[%clk 0:00:34]}  Kxd6 {[%clk 0:01:03]} 30. Bc2 {[%clk 0:00:34]}  Ke5 {[%clk 0:00:53]} 31. c4 {[%clk 0:00:32]}  Ng1+ {[%clk 0:00:33]} 32. Kf1 {[%clk 0:00:30]}  Nxh3 {[%clk 0:00:34]} 33. Bc3+ {[%clk 0:00:29]}  Ke6 {[%clk 0:00:34]} 34. Be1 {[%clk 0:00:21]}  Ng5 {[%clk 0:00:33]} 35. Bg3 {[%clk 0:00:21]}  Be5 {[%clk 0:00:32]} 36. Bh4 {[%clk 0:00:19]}  Nf3 {[%clk 0:00:30]} 37. Be1 {[%clk 0:00:19]}  Nxe1 {[%clk 0:00:27]} 38. Kxe1 {[%clk 0:00:20]}  Bc3+ {[%clk 0:00:28]} 39. Kf2 {[%clk 0:00:19]}  Ke5 {[%clk 0:00:29]} 40. Kg3 {[%clk 0:00:18]}  Be1+ {[%clk 0:00:28]} 41. Kg2 {[%clk 0:00:18]}  b6 {[%clk 0:00:28]} 42. Kf1 {[%clk 0:00:18]}  Bh4 {[%clk 0:00:28]} 43. Ba4 {[%clk 0:00:17]}  Be7 {[%clk 0:00:24]} 44. Bc6 {[%clk 0:00:15]}  Bc5 {[%clk 0:00:24]} 45. Kf2 {[%clk 0:00:15]}  g6 {[%clk 0:00:22]} 46. Be8 {[%clk 0:00:15]}  Kf6 {[%clk 0:00:23]} 47. Bc6 {[%clk 0:00:15]}  Kg5 {[%clk 0:00:23]} 48. Bxe4 {[%clk 0:00:14]}  Kxg4 {[%clk 0:00:20]} 49. Bxg6 {[%clk 0:00:14]}  h5 {[%clk 0:00:21]} 50. Be8 {[%clk 0:00:14]}  h4 {[%clk 0:00:21]} 51. Bd7+ {[%clk 0:00:15]}  Kg5 {[%clk 0:00:21]} 52. Kf3 {[%clk 0:00:15]}  Bd6 {[%clk 0:00:20]} 53. Ke4 {[%clk 0:00:15]}  Kf6 {[%clk 0:00:19]} 54. Kd5 {[%clk 0:00:14]}  Ke7 {[%clk 0:00:20]} 55. Bg4 {[%clk 0:00:14]}  Bc5 {[%clk 0:00:20]} 56. e4 {[%clk 0:00:14]}  a5 {[%clk 0:00:21]} 57. e5 {[%clk 0:00:14]}  Bg1 {[%clk 0:00:21]} 58. Bh3 {[%clk 0:00:14]}  Bf2 {[%clk 0:00:22]} 59. a4 {[%clk 0:00:14]}  Bg1 {[%clk 0:00:22]} 60. Ke4 {[%clk 0:00:15]}  Bf2 {[%clk 0:00:22]} 61. Kf3 {[%clk 0:00:15]}  Bg3 {[%clk 0:00:22]} 62. Ke4 {[%clk 0:00:15]}  Bf2 {[%clk 0:00:23]} 63. Kf4 {[%clk 0:00:16]}  Bg3+ {[%clk 0:00:23]} 64. Kf5 {[%clk 0:00:16]}  Bf2 {[%clk 0:00:23]} 65. Bg2 {[%clk 0:00:17]}  Bc5 {[%clk 0:00:22]} 66. Ke4 {[%clk 0:00:17]}  Bf2 {[%clk 0:00:22]} 67. Kd5 {[%clk 0:00:17]}  Be3 {[%clk 0:00:22]} 68. Bh3 {[%clk 0:00:18]}  Bf2 {[%clk 0:00:22]} 69. Ke4 {[%clk 0:00:18]}  Bg1 {[%clk 0:00:22]} 70. Bg4 {[%clk 0:00:17]}  Bf2 {[%clk 0:00:22]} 71. Kf5 {[%clk 0:00:17]}  Bg1 {[%clk 0:00:22]} 72. Kf4 {[%clk 0:00:17]}  Bf2 {[%clk 0:00:22]} 73. Kg5 {[%clk 0:00:17]}  Bd4 {[%clk 0:00:21]} 74. Kf5 {[%clk 0:00:14]}  Bf2 {[%clk 0:00:21]} 75. Bh3 {[%clk 0:00:14]}  Bg1 {[%clk 0:00:21]} 76. Ke4 {[%clk 0:00:15]}  Bf2 {[%clk 0:00:21]} 1/2-1/2


[Site "https://www.chess.com"]

[Event "Titled Tuesday Blitz August 22 Late 2023"]
[White "Harikrishna, Pentala"]
[Black "Bilan, Danila"]
[WhiteFideId "5007003"]
[BlackFideId "24161918"]
[WhiteElo "2978"]
[BlackElo "2501"]
[Result "1-0"]
[Round "1"]
[TimeControl "180+1"]
[Date "2023.08.22"]
[WhiteClock "0:00:47"]
[BlackClock "0:00:03"]
[Board "26"]

1. Nf3 {[%clk 0:03:00]}  d5 {[%clk 0:02:58]} 2. e3 {[%clk 0:02:59]}  Nf6 {[%clk 0:02:58]} 3. c4 {[%clk 0:02:59]}  c6 {[%clk 0:02:57]} 4. Nc3 {[%clk 0:02:59]}  e6 {[%clk 0:02:55]} 5. b3 {[%clk 0:02:58]}  Nbd7 {[%clk 0:02:53]} 6. Bb2 {[%clk 0:02:58]}  Bd6 {[%clk 0:02:52]} 7. Qc2 {[%clk 0:02:57]}  a6 {[%clk 0:02:44]} 8. d4 {[%clk 0:02:53]}  Qe7 {[%clk 0:02:34]} 9. Be2 {[%clk 0:02:52]}  O-O {[%clk 0:02:27]} 10. O-O {[%clk 0:02:50]}  dxc4 {[%clk 0:02:27]} 11. bxc4 {[%clk 0:02:49]}  e5 {[%clk 0:02:27]} 12. Rfe1 {[%clk 0:02:36]}  Re8 {[%clk 0:02:19]} 13. Nd2 {[%clk 0:02:30]}  Nf8 {[%clk 0:02:13]} 14. Nce4 {[%clk 0:02:27]}  Nxe4 {[%clk 0:01:59]} 15. Nxe4 {[%clk 0:02:28]}  Bb4 {[%clk 0:01:56]} 16. Nc3 {[%clk 0:02:14]}  Ng6 {[%clk 0:01:34]} 17. d5 {[%clk 0:02:13]}  Qg5 {[%clk 0:01:26]} 18. Ne4 {[%clk 0:02:05]}  Qh4 {[%clk 0:01:13]} 19. g3 {[%clk 0:02:01]}  Qe7 {[%clk 0:01:10]} 20. Red1 {[%clk 0:02:00]}  Bf5 {[%clk 0:01:05]} 21. a3 {[%clk 0:01:56]}  Bc5 {[%clk 0:00:58]} 22. Bd3 {[%clk 0:01:54]}  Bg4 {[%clk 0:00:57]} 23. Be2 {[%clk 0:01:51]}  Bf5 {[%clk 0:00:51]} 24. g4 {[%clk 0:01:51]}  Bxe4 {[%clk 0:00:43]} 25. Qxe4 {[%clk 0:01:52]}  cxd5 {[%clk 0:00:40]} 26. Rxd5 {[%clk 0:01:50]}  b6 {[%clk 0:00:37]} 27. a4 {[%clk 0:01:47]}  a5 {[%clk 0:00:35]} 28. Rad1 {[%clk 0:01:47]}  Rad8 {[%clk 0:00:28]} 29. Qf5 {[%clk 0:01:38]}  Rxd5 {[%clk 0:00:25]} 30. Rxd5 {[%clk 0:01:31]}  Rd8 {[%clk 0:00:25]} 31. Bd3 {[%clk 0:01:24]}  h6 {[%clk 0:00:11]} 32. Qf3 {[%clk 0:01:18]}  Rxd5 {[%clk 0:00:09]} 33. Qxd5 {[%clk 0:01:15]}  Qg5 {[%clk 0:00:09]} 34. h3 {[%clk 0:01:10]}  h5 {[%clk 0:00:09]} 35. Qa8+ {[%clk 0:01:01]}  Kh7 {[%clk 0:00:09]} 36. Qf3 {[%clk 0:01:01]}  hxg4 {[%clk 0:00:06]} 37. hxg4 {[%clk 0:01:01]}  Kg8 {[%clk 0:00:07]} 38. Kf1 {[%clk 0:01:01]}  Nh4 {[%clk 0:00:02]} 39. Qa8+ {[%clk 0:00:58]}  Bf8 {[%clk 0:00:03]} 40. Qe4 {[%clk 0:00:58]}  Ng6 {[%clk 0:00:03]} 41. Qf5 {[%clk 0:00:57]}  Qxf5 {[%clk 0:00:03]} 42. gxf5 {[%clk 0:00:57]}  Nh4 {[%clk 0:00:03]} 43. Bxe5 {[%clk 0:00:55]}  f6 {[%clk 0:00:03]} 44. Bc7 {[%clk 0:00:53]}  Bc5 {[%clk 0:00:03]} 45. Be4 {[%clk 0:00:54]}  Kf7 {[%clk 0:00:03]} 46. Bg3 {[%clk 0:00:47]}  g5 {[%clk 0:00:03]} 47. Ke2 {[%clk 0:00:47]}  Ng6 {[%clk 0:00:04]} 48. fxg6+ {[%clk 0:00:47]}  Kg7 {[%clk 0:00:03]} 49. Bf5 {[%clk 0:00:47]} 1-0


[Site "https://www.chess.com"]

[Event "Titled Tuesday Blitz August 22 Late 2023"]
[White "Reprintsev, Alexander"]
[Black "Paravyan, David"]
[WhiteFideId "14100541"]
[BlackFideId "4194985"]
[WhiteElo "2500"]
[BlackElo "2975"]
[Result "0-1"]
[Round "1"]
[TimeControl "180+1"]
[Date "2023.08.22"]
[WhiteClock "0:00:54"]
[BlackClock "0:01:56"]
[Board "27"]

1. e4 {[%clk 0:03:00]}  e5 {[%clk 0:02:57]} 2. Nf3 {[%clk 0:03:00]}  Nf6 {[%clk 0:02:57]} 3. d4 {[%clk 0:02:59]}  Nxe4 {[%clk 0:02:57]} 4. Bd3 {[%clk 0:02:58]}  d5 {[%clk 0:02:57]} 5. Nxe5 {[%clk 0:02:58]}  Bd6 {[%clk 0:02:57]} 6. Nc3 {[%clk 0:02:56]}  Nxc3 {[%clk 0:02:56]} 7. bxc3 {[%clk 0:02:55]}  O-O {[%clk 0:02:56]} 8. Qh5 {[%clk 0:02:40]}  g6 {[%clk 0:02:52]} 9. Qh6 {[%clk 0:02:38]}  Nd7 {[%clk 0:02:39]} 10. f4 {[%clk 0:02:36]}  Re8 {[%clk 0:02:33]} 11. O-O {[%clk 0:02:35]}  Bf8 {[%clk 0:02:33]} 12. Qg5 {[%clk 0:02:19]}  Qxg5 {[%clk 0:02:33]} 13. fxg5 {[%clk 0:02:19]}  Nxe5 {[%clk 0:02:34]} 14. dxe5 {[%clk 0:02:19]}  Bg7 {[%clk 0:02:33]} 15. Bf4 {[%clk 0:02:08]}  Bd7 {[%clk 0:02:29]} 16. Rae1 {[%clk 0:02:07]}  Re6 {[%clk 0:02:27]} 17. Re2 {[%clk 0:02:04]}  Rae8 {[%clk 0:02:28]} 18. Rfe1 {[%clk 0:02:04]}  a6 {[%clk 0:02:28]} 19. Kf2 {[%clk 0:02:01]}  Bb5 {[%clk 0:02:22]} 20. h4 {[%clk 0:01:37]}  Rc6 {[%clk 0:02:18]} 21. Bd2 {[%clk 0:01:32]}  Rce6 {[%clk 0:02:14]} 22. Bf4 {[%clk 0:01:32]}  c5 {[%clk 0:02:01]} 23. Bxb5 {[%clk 0:01:31]}  axb5 {[%clk 0:02:02]} 24. Rd2 {[%clk 0:01:24]}  Bxe5 {[%clk 0:02:00]} 25. Be3 {[%clk 0:01:04]}  Bg3+ {[%clk 0:01:59]} 26. Kxg3 {[%clk 0:01:04]}  Rxe3+ {[%clk 0:01:59]} 27. Rxe3 {[%clk 0:01:04]}  Rxe3+ {[%clk 0:02:00]} 28. Kf4 {[%clk 0:01:04]}  Rxc3 {[%clk 0:02:01]} 29. Ke5 {[%clk 0:01:02]}  d4 {[%clk 0:01:55]} 30. Kf6 {[%clk 0:00:54]}  Re3 {[%clk 0:01:56]} 0-1


[Site "https://www.chess.com"]

[Event "Titled Tuesday Blitz August 22 Late 2023"]
[White "Dardha, Daniel"]
[Black "Kaplan, Avi Harrison"]
[WhiteFideId "240990"]
[BlackFideId "30934559"]
[WhiteElo "2973"]
[BlackElo "2499"]
[Result "0-1"]
[Round "1"]
[TimeControl "180+1"]
[Date "2023.08.22"]
[WhiteClock "0:00:03"]
[BlackClock "0:00:08"]
[Board "28"]

1. d4 {[%clk 0:02:58]}  g6 {[%clk 0:02:56]} 2. e4 {[%clk 0:02:58]}  Bg7 {[%clk 0:02:55]} 3. Nc3 {[%clk 0:02:55]}  d6 {[%clk 0:02:53]} 4. h4 {[%clk 0:02:54]}  h6 {[%clk 0:02:49]} 5. Be3 {[%clk 0:02:52]}  e5 {[%clk 0:02:44]} 6. dxe5 {[%clk 0:02:51]}  Bxe5 {[%clk 0:02:41]} 7. Nf3 {[%clk 0:02:51]}  Bg7 {[%clk 0:02:40]} 8. Bc4 {[%clk 0:02:44]}  Nf6 {[%clk 0:02:39]} 9. Qd2 {[%clk 0:02:38]}  Qe7 {[%clk 0:02:17]} 10. O-O-O {[%clk 0:02:22]}  Nxe4 {[%clk 0:02:05]} 11. Nxe4 {[%clk 0:02:16]}  Qxe4 {[%clk 0:02:06]} 12. Bd5 {[%clk 0:01:59]}  Qf5 {[%clk 0:01:53]} 13. Rhe1 {[%clk 0:01:55]}  Kf8 {[%clk 0:01:49]} 14. Bd4 {[%clk 0:01:37]}  Nc6 {[%clk 0:01:44]} 15. Bxg7+ {[%clk 0:01:31]}  Kxg7 {[%clk 0:01:45]} 16. Re4 {[%clk 0:01:24]}  Rf8 {[%clk 0:00:45]} 17. Rf4 {[%clk 0:01:17]}  Qd7 {[%clk 0:00:45]} 18. Qc3+ {[%clk 0:01:11]}  Kh7 {[%clk 0:00:45]} 19. Ng5+ {[%clk 0:01:08]}  hxg5 {[%clk 0:00:35]} 20. hxg5 {[%clk 0:01:09]}  Ne5 {[%clk 0:00:36]} 21. Rh1+ {[%clk 0:01:06]}  Kg7 {[%clk 0:00:34]} 22. Rfh4 {[%clk 0:01:06]}  Re8 {[%clk 0:00:18]} 23. f4 {[%clk 0:01:02]}  Kf8 {[%clk 0:00:16]} 24. fxe5 {[%clk 0:00:50]}  Rxe5 {[%clk 0:00:16]} 25. Bxf7 {[%clk 0:00:50]}  Qc6 {[%clk 0:00:07]} 26. Qb3 {[%clk 0:00:26]}  d5 {[%clk 0:00:07]} 27. Qa3+ {[%clk 0:00:02]}  Kxf7 {[%clk 0:00:07]} 28. Rh7+ {[%clk 0:00:02]}  Ke6 {[%clk 0:00:07]} 29. Qe7+ {[%clk 0:00:01]}  Kf5 {[%clk 0:00:08]} 30. Qf6+ {[%clk 0:00:02]}  Qxf6 {[%clk 0:00:08]} 31. gxf6 {[%clk 0:00:01]}  Kxf6 {[%clk 0:00:09]} 32. Rxc7 {[%clk 0:00:01]}  Bf5 {[%clk 0:00:09]} 33. Rxb7 {[%clk 0:00:01]}  Rc8 {[%clk 0:00:10]} 34. c3 {[%clk 0:00:01]}  Re2 {[%clk 0:00:09]} 35. g4 {[%clk 0:00:01]}  Bxg4 {[%clk 0:00:07]} 36. Kb1 {[%clk 0:00:02]}  Bf5+ {[%clk 0:00:07]} 37. Ka1 {[%clk 0:00:03]}  Rce8 {[%clk 0:00:08]} 38. Rc1 {[%clk 0:00:02]}  Re1 {[%clk 0:00:08]} 39. a4 {[%clk 0:00:02]}  Rxc1+ {[%clk 0:00:08]} 40. Ka2 {[%clk 0:00:03]}  Ree1 {[%clk 0:00:08]} 41. Kb3 {[%clk 0:00:04]}  Rcd1 {[%clk 0:00:08]} 42. Rxa7 {[%clk 0:00:05]}  g5 {[%clk 0:00:08]} 43. Ra6+ {[%clk 0:00:05]}  Be6 {[%clk 0:00:08]} 44. a5 {[%clk 0:00:06]}  g4 {[%clk 0:00:08]} 45. Ra8 {[%clk 0:00:06]}  g3 {[%clk 0:00:09]} 46. a6 {[%clk 0:00:04]}  g2 {[%clk 0:00:09]} 47. a7 {[%clk 0:00:04]}  Ra1 {[%clk 0:00:07]} 48. Rf8+ {[%clk 0:00:04]}  Kg7 {[%clk 0:00:08]} 49. a8=Q {[%clk 0:00:03]}  Rxa8 {[%clk 0:00:08]} 50. Rxa8 {[%clk 0:00:03]}  g1=Q {[%clk 0:00:09]} 51. Ra4 {[%clk 0:00:02]}  Qb6+ {[%clk 0:00:09]} 52. Ka2 {[%clk 0:00:02]}  d4+ {[%clk 0:00:09]} 53. Ka3 {[%clk 0:00:03]}  Ra1# {[%clk 0:00:08]} 0-1


[Site "https://www.chess.com"]

[Event "Titled Tuesday Blitz August 22 Late 2023"]
[White "Hnydiuk, Aleksander"]
[Black "Vasquez Schroeder, Rodrigo"]
[WhiteFideId "1109057"]
[BlackFideId "3400042"]
[WhiteElo "2498"]
[BlackElo "2964"]
[Result "0-1"]
[Round "1"]
[TimeControl "180+1"]
[Date "2023.08.22"]
[WhiteClock "0:00:00"]
[BlackClock "0:01:35"]
[Board "29"]

1. e4 {[%clk 0:03:00]}  c5 {[%clk 0:02:59]} 2. Nf3 {[%clk 0:02:59]}  d6 {[%clk 0:03:00]} 3. d4 {[%clk 0:03:00]}  cxd4 {[%clk 0:03:00]} 4. Nxd4 {[%clk 0:03:00]}  Nf6 {[%clk 0:03:00]} 5. Nc3 {[%clk 0:03:01]}  a6 {[%clk 0:03:00]} 6. Be3 {[%clk 0:03:00]}  e6 {[%clk 0:02:59]} 7. a3 {[%clk 0:02:57]}  b5 {[%clk 0:02:54]} 8. g4 {[%clk 0:02:51]}  h6 {[%clk 0:02:54]} 9. f4 {[%clk 0:02:37]}  Bb7 {[%clk 0:02:53]} 10. Bg2 {[%clk 0:02:37]}  Nbd7 {[%clk 0:02:50]} 11. Qe2 {[%clk 0:02:34]}  Rc8 {[%clk 0:02:49]} 12. h4 {[%clk 0:02:29]}  Rxc3 {[%clk 0:02:45]} 13. bxc3 {[%clk 0:02:28]}  Nxe4 {[%clk 0:02:45]} 14. Bxe4 {[%clk 0:00:47]}  Bxe4 {[%clk 0:02:44]} 15. Rh3 {[%clk 0:00:39]}  Nc5 {[%clk 0:02:30]} 16. g5 {[%clk 0:00:30]}  hxg5 {[%clk 0:02:27]} 17. fxg5 {[%clk 0:00:29]}  Qc8 {[%clk 0:02:25]} 18. h5 {[%clk 0:00:26]}  e5 {[%clk 0:02:24]} 19. Rh4 {[%clk 0:00:20]}  exd4 {[%clk 0:02:15]} 20. Bxd4 {[%clk 0:00:16]}  d5 {[%clk 0:02:14]} 21. h6 {[%clk 0:00:14]}  Ne6 {[%clk 0:01:59]} 22. Rxe4 {[%clk 0:00:06]}  dxe4 {[%clk 0:01:57]} 23. Qxe4 {[%clk 0:00:07]}  Be7 {[%clk 0:01:50]} 24. hxg7 {[%clk 0:00:05]}  Rg8 {[%clk 0:01:50]} 25. Qh7 {[%clk 0:00:04]}  Kd7 {[%clk 0:01:50]} 26. O-O-O {[%clk 0:00:03]}  Kc7 {[%clk 0:01:40]} 27. Be5+ {[%clk 0:00:02]}  Kb6 {[%clk 0:01:40]} 28. Qe4 {[%clk 0:00:01]}  Qc6 {[%clk 0:01:38]} 29. Qe3+ {[%clk 0:00:00]}  Kb7 {[%clk 0:01:35]} 0-1


[Site "https://www.chess.com"]

[Event "Titled Tuesday Blitz August 22 Late 2023"]
[White "Martins, Bruno Andre Leite"]
[Black "Keymer, Vincent"]
[WhiteFideId "1942255"]
[BlackFideId "12940690"]
[WhiteElo "2497"]
[BlackElo "2952"]
[Result "0-1"]
[Round "1"]
[TimeControl "180+1"]
[Date "2023.08.22"]
[WhiteClock "0:00:13"]
[BlackClock "0:02:44"]
[Board "31"]

1. e4 {[%clk 0:03:00]}  c6 {[%clk 0:03:00]} 2. d4 {[%clk 0:03:00]}  d5 {[%clk 0:03:01]} 3. Nc3 {[%clk 0:03:00]}  dxe4 {[%clk 0:03:01]} 4. Nxe4 {[%clk 0:03:01]}  Nf6 {[%clk 0:03:02]} 5. Nxf6+ {[%clk 0:03:01]}  exf6 {[%clk 0:03:03]} 6. c3 {[%clk 0:03:01]}  Bd6 {[%clk 0:03:03]} 7. Bd3 {[%clk 0:03:01]}  O-O {[%clk 0:03:04]} 8. Qc2 {[%clk 0:03:01]}  Re8+ {[%clk 0:03:05]} 9. Be3 {[%clk 0:03:02]}  h5 {[%clk 0:03:04]} 10. O-O-O {[%clk 0:03:01]}  Nd7 {[%clk 0:03:05]} 11. Ne2 {[%clk 0:03:00]}  Nf8 {[%clk 0:03:04]} 12. h3 {[%clk 0:02:59]}  Be6 {[%clk 0:03:04]} 13. Kb1 {[%clk 0:02:58]}  b5 {[%clk 0:02:53]} 14. g4 {[%clk 0:02:23]}  h4 {[%clk 0:02:53]} 15. Nf4 {[%clk 0:02:21]}  Bxf4 {[%clk 0:02:52]} 16. Bxf4 {[%clk 0:02:21]}  Qd5 {[%clk 0:02:53]} 17. b3 {[%clk 0:02:15]}  a5 {[%clk 0:02:53]} 18. Be4 {[%clk 0:02:12]}  Qd7 {[%clk 0:02:52]} 19. Qd2 {[%clk 0:01:35]}  Bxb3 {[%clk 0:02:49]} 20. axb3 {[%clk 0:01:30]}  Rxe4 {[%clk 0:02:48]} 21. Be3 {[%clk 0:01:20]}  a4 {[%clk 0:02:48]} 22. Kb2 {[%clk 0:01:19]}  axb3 {[%clk 0:02:47]} 23. Qd3 {[%clk 0:01:16]}  Ree8 {[%clk 0:02:44]} 24. Kxb3 {[%clk 0:01:08]}  Qd5+ {[%clk 0:02:44]} 25. Kc2 {[%clk 0:00:55]}  Ra2+ {[%clk 0:02:43]} 26. Kc1 {[%clk 0:00:13]}  Qb3 {[%clk 0:02:44]} 0-1


[Site "https://www.chess.com"]